[Event "*** Titled Tuesday Blitz AM"]
[Site "Chess.com"]
[Date "2020.01.07"]
[Round "4"]
[White "viditchess"]
[Black "VladDobrov"]
[Result "0-1"]
[WhiteElo "2979"]
[BlackElo "2833"]
[TimeControl "180+2"]
[EndTime "9:53:42 PST"]
[Termination "VladDobrov won by resignation"]

1. c4 {[%clk 0:03:01.9]} 1... c6 {[%clk 0:02:57.8]} 2. d4 {[%clk 0:03:00.6]}
2... d5 {[%clk 0:02:58.9]} 3. Nf3 {[%clk 0:03:02.2]} 3... Nf6 {[%clk 0:02:59.6]}
4. e3 {[%clk 0:03:03.8]} 4... e6 {[%clk 0:03:00.6]} 5. b3 {[%clk 0:03:02]} 5...
Nbd7 {[%clk 0:02:56.5]} 6. Bd3 {[%clk 0:03:01.6]} 6... Bd6 {[%clk 0:02:54.7]} 7.
Bb2 {[%clk 0:03:02.5]} 7... Ne4 {[%clk 0:02:39.6]} 8. O-O {[%clk 0:02:58.5]}
8... f5 {[%clk 0:02:34.6]} 9. Ba3 {[%clk 0:02:48.6]} 9... Bxa3 {[%clk
0:02:33.9]} 10. Nxa3 {[%clk 0:02:49.5]} 10... O-O {[%clk 0:02:25.5]} 11. b4
{[%clk 0:02:45.2]} 11... a5 {[%clk 0:02:21.9]} 12. b5 {[%clk 0:02:45.8]} 12...
c5 {[%clk 0:02:22.9]} 13. cxd5 {[%clk 0:02:41.8]} 13... exd5 {[%clk 0:02:23.9]}
14. dxc5 {[%clk 0:02:41.2]} 14... Ndxc5 {[%clk 0:02:24.9]} 15. Rc1 {[%clk
0:02:40.3]} 15... b6 {[%clk 0:02:25.5]} 16. Bb1 {[%clk 0:02:32.7]} 16... f4
{[%clk 0:02:24.1]} 17. exf4 {[%clk 0:02:17.8]} 17... Rxf4 {[%clk 0:02:15.3]} 18.
Nd4 {[%clk 0:02:16.2]} 18... Qd6 {[%clk 0:01:35.7]} 19. Nc6 {[%clk 0:01:43.7]}
19... Be6 {[%clk 0:01:27.7]} 20. g3 {[%clk 0:01:35]} 20... Rf6 {[%clk
0:01:17.2]} 21. f4 {[%clk 0:01:30.8]} 21... Bh3 {[%clk 0:00:57.3]} 22. Qxd5+
{[%clk 0:01:09.4]} 22... Qxd5 {[%clk 0:00:57.9]} 23. Ne7+ {[%clk 0:01:10.6]}
23... Kf7 {[%clk 0:00:57.9]} 24. Nxd5 {[%clk 0:01:12.5]} 24... Rd6 {[%clk
0:00:58.7]} 25. Rfd1 {[%clk 0:01:06]} 25... Rad8 {[%clk 0:00:59.1]} 26. Ne3
{[%clk 0:01:06.5]} 26... Nd2 {[%clk 0:00:41.4]} 27. Bc2 {[%clk 0:00:48.8]} 27...
Be6 {[%clk 0:00:26.5]} 28. Ra1 {[%clk 0:00:30.7]} 28... g6 {[%clk 0:00:15.1]}
29. Kf2 {[%clk 0:00:30.4]} 29... Nde4+ {[%clk 0:00:15.2]} 30. Kf3 {[%clk
0:00:28.5]} 30... Nc3 {[%clk 0:00:16.2]} 31. Rxd6 {[%clk 0:00:28.3]} 31... Rxd6
{[%clk 0:00:18.1]} 32. Nac4 {[%clk 0:00:29.4]} 32... Rd4 {[%clk 0:00:13.6]} 33.
Nxb6 {[%clk 0:00:28.5]} 33... Nxa2 {[%clk 0:00:14.8]} 34. g4 {[%clk 0:00:22.7]}
34... a4 {[%clk 0:00:12.9]} 35. f5 {[%clk 0:00:21.8]} 35... gxf5 {[%clk
0:00:14.3]} 36. gxf5 {[%clk 0:00:23.3]} 36... Bb3 {[%clk 0:00:14.4]} 37. Nc8
{[%clk 0:00:17.1]} 37... Nb4 {[%clk 0:00:14.7]} 38. Bb1 {[%clk 0:00:12.6]} 38...
h5 {[%clk 0:00:12.5]} 39. b6 {[%clk 0:00:13.5]} 39... Rd7 {[%clk 0:00:11.8]} 40.
Be4 {[%clk 0:00:12.4]} 40... Nxe4 {[%clk 0:00:10.7]} 41. Kxe4 {[%clk 0:00:14.3]}
41... Ke8 {[%clk 0:00:09.1]} 42. Ke5 {[%clk 0:00:14.9]} 42... Kd8 {[%clk
0:00:10.2]} 43. Na7 {[%clk 0:00:14.5]} 43... Rb7 {[%clk 0:00:10.2]} 44. Kd4
{[%clk 0:00:05.3]} 44... Rxb6 {[%clk 0:00:11.6]} 45. Kc5 {[%clk 0:00:06.8]}
45... Rb7 {[%clk 0:00:13.1]} 46. Nb5 {[%clk 0:00:04.4]} 46... Nd3+ {[%clk
0:00:14.4]} 47. Kc6 {[%clk 0:00:05.6]} 47... Re7 {[%clk 0:00:14.2]} 48. Nd5
{[%clk 0:00:05.1]} 48... Re5 {[%clk 0:00:15.4]} 49. Nb6 {[%clk 0:00:03.9]} 49...
Nb4+ {[%clk 0:00:16.6]} 50. Kd6 {[%clk 0:00:03.8]} 50... Rxb5 {[%clk 0:00:18.2]}
51. Nxa4 {[%clk 0:00:04.8]} 51... Rd5+ {[%clk 0:00:15.4]} 52. Ke6 {[%clk
0:00:05.5]} 52... Ra5+ {[%clk 0:00:16.6]} 0-1

[Event "*** Titled Tuesday Blitz AM"]
[Site "Chess.com"]
[Date "2020.01.07"]
[Round "4"]
[White "karinachess1"]
[Black "Witik"]
[Result "1/2-1/2"]
[WhiteElo "2477"]
[BlackElo "2666"]
[TimeControl "180+2"]
[EndTime "9:53:42 PST"]
[Termination "Game drawn by stalemate"]

1. c4 {[%clk 0:03:01.9]} 1... e5 {[%clk 0:02:57.3]} 2. Nc3 {[%clk 0:03:02.4]}
2... Bb4 {[%clk 0:02:57.5]} 3. Qc2 {[%clk 0:02:56.4]} 3... c6 {[%clk 0:02:56.9]}
4. a3 {[%clk 0:02:55.2]} 4... Ba5 {[%clk 0:02:57.4]} 5. Nf3 {[%clk 0:02:52.1]}
5... Qe7 {[%clk 0:02:56.1]} 6. b4 {[%clk 0:02:45.8]} 6... Bc7 {[%clk 0:02:55.7]}
7. Bb2 {[%clk 0:02:47.4]} 7... Nf6 {[%clk 0:02:54.2]} 8. d3 {[%clk 0:02:45.7]}
8... O-O {[%clk 0:02:54.6]} 9. g3 {[%clk 0:02:40.3]} 9... a6 {[%clk 0:02:25.5]}
10. c5 {[%clk 0:02:35.7]} 10... a5 {[%clk 0:02:23]} 11. Bg2 {[%clk 0:02:26.8]}
11... Na6 {[%clk 0:02:23.7]} 12. Qb3 {[%clk 0:01:48.3]} 12... axb4 {[%clk
0:02:12.2]} 13. axb4 {[%clk 0:01:48]} 13... d6 {[%clk 0:02:13.6]} 14. cxd6
{[%clk 0:01:26.2]} 14... Bxd6 {[%clk 0:02:13.1]} 15. b5 {[%clk 0:01:20.6]} 15...
Nc5 {[%clk 0:02:08.4]} 16. Qc2 {[%clk 0:01:19.5]} 16... Rxa1+ {[%clk 0:02:03.1]}
17. Bxa1 {[%clk 0:01:21.4]} 17... Be6 {[%clk 0:01:52.5]} 18. O-O {[%clk
0:01:06.9]} 18... Nb3 {[%clk 0:01:45.5]} 19. bxc6 {[%clk 0:00:54.7]} 19... bxc6
{[%clk 0:01:46.7]} 20. Bb2 {[%clk 0:00:53]} 20... Nd4 {[%clk 0:01:39.7]} 21.
Nxd4 {[%clk 0:00:42.5]} 21... exd4 {[%clk 0:01:41.6]} 22. Ne4 {[%clk 0:00:44]}
22... Nxe4 {[%clk 0:01:41]} 23. Bxe4 {[%clk 0:00:45.9]} 23... c5 {[%clk
0:01:42.3]} 24. Ra1 {[%clk 0:00:41.6]} 24... Bh3 {[%clk 0:01:37.7]} 25. Bc1
{[%clk 0:00:24.4]} 25... Kh8 {[%clk 0:01:22.3]} 26. Bd2 {[%clk 0:00:22.1]} 26...
f5 {[%clk 0:01:21.3]} 27. Bf3 {[%clk 0:00:22.5]} 27... f4 {[%clk 0:01:22.8]} 28.
Qc4 {[%clk 0:00:19]} 28... fxg3 {[%clk 0:00:58.7]} 29. hxg3 {[%clk 0:00:20]}
29... h6 {[%clk 0:00:59]} 30. Qd5 {[%clk 0:00:21]} 30... Be6 {[%clk 0:00:55.4]}
31. Qe4 {[%clk 0:00:21.5]} 31... Qf7 {[%clk 0:00:47.1]} 32. Ra8 {[%clk 0:00:21]}
32... Bf5 {[%clk 0:00:43]} 33. Rxf8+ {[%clk 0:00:20.8]} 33... Qxf8 {[%clk
0:00:43.3]} 34. Qa8 {[%clk 0:00:21.7]} 34... Qxa8 {[%clk 0:00:40.4]} 35. Bxa8
{[%clk 0:00:23.6]} 35... Kg8 {[%clk 0:00:39.6]} 36. Bd5+ {[%clk 0:00:23.4]}
36... Kf8 {[%clk 0:00:40.4]} 37. Kg2 {[%clk 0:00:24.6]} 37... Ke7 {[%clk
0:00:41.7]} 38. f3 {[%clk 0:00:25.1]} 38... Be6 {[%clk 0:00:41.1]} 39. Bxe6
{[%clk 0:00:24.5]} 39... Kxe6 {[%clk 0:00:42.6]} 40. g4 {[%clk 0:00:25]} 40...
Kd5 {[%clk 0:00:43.7]} 41. Bc1 {[%clk 0:00:25.9]} 41... c4 {[%clk 0:00:44.7]}
42. dxc4+ {[%clk 0:00:27.8]} 42... Kxc4 {[%clk 0:00:46]} 43. g5 {[%clk
0:00:27.9]} 43... h5 {[%clk 0:00:44]} 44. g6 {[%clk 0:00:26.1]} 44... Kd5 {[%clk
0:00:41.8]} 45. Bg5 {[%clk 0:00:26]} 45... Ke6 {[%clk 0:00:41.8]} 46. e4 {[%clk
0:00:19.7]} 46... dxe3 {[%clk 0:00:38.3]} 47. Bxe3 {[%clk 0:00:20.6]} 47... Kf5
{[%clk 0:00:39.8]} 48. Bd4 {[%clk 0:00:19]} 48... Kxg6 {[%clk 0:00:40.6]} 49.
Bxg7 {[%clk 0:00:19.3]} 49... Kxg7 {[%clk 0:00:41.6]} 50. f4 {[%clk 0:00:19.9]}
50... Kf6 {[%clk 0:00:40.4]} 51. Kh1 {[%clk 0:00:21.8]} 51... Kf5 {[%clk
0:00:41.3]} 52. Kg2 {[%clk 0:00:23.7]} 52... Be7 {[%clk 0:00:42.5]} 53. Kh1
{[%clk 0:00:25.6]} 53... h4 {[%clk 0:00:43.6]} 54. Kg2 {[%clk 0:00:27.1]} 54...
Bf6 {[%clk 0:00:44.8]} 55. Kh1 {[%clk 0:00:28.5]} 55... Kg4 {[%clk 0:00:46.2]}
56. Kg2 {[%clk 0:00:29.8]} 56... h3+ {[%clk 0:00:47.1]} 57. Kh1 {[%clk
0:00:31.2]} 57... Kg3 {[%clk 0:00:48.3]} 58. f5 {[%clk 0:00:30.9]} 58... Kg4
{[%clk 0:00:37.5]} 59. Kh2 {[%clk 0:00:30.8]} 59... Be5+ {[%clk 0:00:37.8]} 60.
Kh1 {[%clk 0:00:31.4]} 60... Kxf5 {[%clk 0:00:27.9]} 61. Kg1 {[%clk 0:00:32]}
61... Kg4 {[%clk 0:00:29.2]} 62. Kh1 {[%clk 0:00:33.1]} 62... Kg3 {[%clk
0:00:30.7]} 63. Kg1 {[%clk 0:00:34.1]} 63... h2+ {[%clk 0:00:32.2]} 64. Kh1
{[%clk 0:00:35]} 64... Kf2 {[%clk 0:00:33.7]} 1/2-1/2

[Event "*** Titled Tuesday Blitz AM"]
[Site "Chess.com"]
[Date "2020.01.07"]
[Round "4"]
[White "PIwan"]
[Black "Kirill_Klukin"]
[Result "0-1"]
[WhiteElo "2520"]
[BlackElo "2702"]
[TimeControl "180+2"]
[EndTime "9:53:58 PST"]
[Termination "Kirill_Klukin won by resignation"]

1. c4 {[%clk 0:03:01.9]} 1... e5 {[%clk 0:03:00.8]} 2. Nc3 {[%clk 0:03:02.9]}
2... Nf6 {[%clk 0:03:02]} 3. Nf3 {[%clk 0:03:03.8]} 3... Nc6 {[%clk 0:03:01.7]}
4. e3 {[%clk 0:03:05]} 4... d6 {[%clk 0:02:51.4]} 5. d4 {[%clk 0:03:05.4]} 5...
Bg4 {[%clk 0:02:52.1]} 6. d5 {[%clk 0:02:59.1]} 6... Nb8 {[%clk 0:02:48.5]} 7.
Qb3 {[%clk 0:02:51.3]} 7... Qc8 {[%clk 0:02:44.8]} 8. e4 {[%clk 0:02:49.3]} 8...
Nbd7 {[%clk 0:02:43.5]} 9. Be3 {[%clk 0:02:48.1]} 9... Be7 {[%clk 0:02:36.3]}
10. Be2 {[%clk 0:02:42]} 10... O-O {[%clk 0:02:36.1]} 11. h3 {[%clk 0:02:41.6]}
11... Bh5 {[%clk 0:02:24]} 12. g4 {[%clk 0:02:39.6]} 12... Bg6 {[%clk
0:02:24.7]} 13. Nd2 {[%clk 0:02:40.7]} 13... b6 {[%clk 0:02:14.5]} 14. O-O-O
{[%clk 0:02:38.4]} 14... Nc5 {[%clk 0:02:15.5]} 15. Qc2 {[%clk 0:02:39.9]} 15...
a5 {[%clk 0:02:15.9]} 16. f3 {[%clk 0:02:02]} 16... Nfd7 {[%clk 0:02:08.2]} 17.
h4 {[%clk 0:01:59.4]} 17... h6 {[%clk 0:02:04.3]} 18. Rdg1 {[%clk 0:01:46.7]}
18... Qd8 {[%clk 0:02:01.4]} 19. Nb5 {[%clk 0:01:26.4]} 19... Na6 {[%clk
0:01:49.9]} 20. g5 {[%clk 0:00:50.1]} 20... h5 {[%clk 0:01:44.8]} 21. a3 {[%clk
0:00:49.1]} 21... Qc8 {[%clk 0:01:33.5]} 22. Kb1 {[%clk 0:00:47.1]} 22... c6
{[%clk 0:01:33.8]} 23. Nc3 {[%clk 0:00:38.1]} 23... Re8 {[%clk 0:01:30.9]} 24.
dxc6 {[%clk 0:00:35.5]} 24... Qxc6 {[%clk 0:01:32.8]} 25. Nd5 {[%clk 0:00:37.1]}
25... Bf8 {[%clk 0:01:34.5]} 26. Nf1 {[%clk 0:00:28.3]} 26... Nc7 {[%clk
0:01:32.7]} 27. Nc3 {[%clk 0:00:19]} 27... Ne6 {[%clk 0:01:32.4]} 28. Qd2 {[%clk
0:00:17.9]} 28... Ndc5 {[%clk 0:01:31.8]} 29. Ng3 {[%clk 0:00:18.3]} 29... Nb3
{[%clk 0:01:33]} 30. Qd1 {[%clk 0:00:19]} 30... Nbd4 {[%clk 0:01:34.1]} 31. Bd3
{[%clk 0:00:17.2]} 31... Rac8 {[%clk 0:01:34.5]} 32. Nf5 {[%clk 0:00:18.1]}
32... Qd7 {[%clk 0:01:18.4]} 33. Nd5 {[%clk 0:00:18.4]} 33... Rb8 {[%clk
0:01:19.3]} 34. Bxd4 {[%clk 0:00:18.4]} 34... exd4 {[%clk 0:01:15.7]} 35. f4
{[%clk 0:00:15.7]} 35... Nc5 {[%clk 0:01:14.3]} 36. Re1 {[%clk 0:00:11.5]} 36...
Nxe4 {[%clk 0:00:54.2]} 37. Ka1 {[%clk 0:00:09.6]} 37... Bxf5 {[%clk 0:00:54.3]}
38. Rhg1 {[%clk 0:00:08.8]} 38... Nc5 {[%clk 0:00:52]} 39. Nf6+ {[%clk
0:00:08.7]} 39... gxf6 {[%clk 0:00:26.9]} 40. gxf6+ {[%clk 0:00:10.6]} 40... Bg6
{[%clk 0:00:28.2]} 41. Bxg6 {[%clk 0:00:11]} 41... fxg6 {[%clk 0:00:29.1]} 42.
Rxg6+ {[%clk 0:00:09.9]} 42... Kh8 {[%clk 0:00:30.1]} 43. Qxh5+ {[%clk 0:00:10]}
43... Qh7 {[%clk 0:00:31.7]} 44. Qxh7+ {[%clk 0:00:06.9]} 44... Kxh7 {[%clk
0:00:33.6]} 45. Reg1 {[%clk 0:00:08]} 45... Bh6 {[%clk 0:00:29.3]} 46. f5 {[%clk
0:00:09.1]} 46... Rf8 {[%clk 0:00:29.4]} 47. Kb1 {[%clk 0:00:09.4]} 47... Ne4
{[%clk 0:00:30.5]} 48. Kc2 {[%clk 0:00:09.3]} 48... Nxf6 {[%clk 0:00:31.5]} 49.
Kd3 {[%clk 0:00:10.5]} 49... Rbe8 {[%clk 0:00:33]} 50. Kxd4 {[%clk 0:00:11.5]}
50... Re4+ {[%clk 0:00:34.6]} 51. Kd3 {[%clk 0:00:12.8]} 51... Rxh4 {[%clk
0:00:36.4]} 52. Re1 {[%clk 0:00:12.5]} 52... Rf7 {[%clk 0:00:33.4]} 53. Re6
{[%clk 0:00:12.7]} 53... Nd7 {[%clk 0:00:35]} 54. Kc2 {[%clk 0:00:12]} 54... Ne5
{[%clk 0:00:35.9]} 55. Rg2 {[%clk 0:00:11.5]} 55... Rxc4+ {[%clk 0:00:36.2]} 56.
Kb1 {[%clk 0:00:12.2]} 56... Rh4 {[%clk 0:00:33.9]} 57. Rxd6 {[%clk 0:00:13.1]}
57... Nc4 {[%clk 0:00:35]} 58. Rc6 {[%clk 0:00:13.8]} 58... Bg7 {[%clk
0:00:35.3]} 59. Rxc4 {[%clk 0:00:14.5]} 59... Rxc4 {[%clk 0:00:35.7]} 0-1

[Event "*** Titled Tuesday Blitz AM"]
[Site "Chess.com"]
[Date "2020.01.07"]
[Round "4"]
[White "Justmig"]
[Black "M1711"]
[Result "1-0"]
[WhiteElo "2709"]
[BlackElo "2527"]
[TimeControl "180+2"]
[EndTime "9:53:59 PST"]
[Termination "Justmig won by checkmate"]

1. d4 {[%clk 0:03:01.9]} 1... e6 {[%clk 0:02:59.3]} 2. Nf3 {[%clk 0:02:58.5]}
2... f5 {[%clk 0:02:59.8]} 3. Bg5 {[%clk 0:02:58.4]} 3... Nf6 {[%clk 0:03:00.3]}
4. Nbd2 {[%clk 0:02:57]} 4... Be7 {[%clk 0:03:00.8]} 5. Bxf6 {[%clk 0:02:57.8]}
5... Bxf6 {[%clk 0:03:01.3]} 6. e4 {[%clk 0:02:59.5]} 6... fxe4 {[%clk
0:03:00.9]} 7. Nxe4 {[%clk 0:03:01.4]} 7... O-O {[%clk 0:02:59.4]} 8. Bd3 {[%clk
0:03:02.5]} 8... Nc6 {[%clk 0:02:54.2]} 9. c3 {[%clk 0:02:41.1]} 9... d6 {[%clk
0:02:15.9]} 10. Qe2 {[%clk 0:02:38.2]} 10... e5 {[%clk 0:02:11.8]} 11. dxe5
{[%clk 0:01:44.2]} 11... Nxe5 {[%clk 0:02:05.3]} 12. Nxe5 {[%clk 0:01:45.3]}
12... Bxe5 {[%clk 0:02:05.3]} 13. O-O-O {[%clk 0:01:46.8]} 13... Qh4 {[%clk
0:01:58]} 14. g3 {[%clk 0:01:45.3]} 14... Qg4 {[%clk 0:01:57.1]} 15. Qc2 {[%clk
0:01:38.7]} 15... Kh8 {[%clk 0:01:52.4]} 16. f4 {[%clk 0:01:39.1]} 16... Bf6
{[%clk 0:01:49.2]} 17. h3 {[%clk 0:01:38]} 17... Qh5 {[%clk 0:01:42.8]} 18. g4
{[%clk 0:01:36.6]} 18... Qh4 {[%clk 0:01:43.6]} 19. Kb1 {[%clk 0:01:32.4]} 19...
Bd7 {[%clk 0:01:42.3]} 20. Rde1 {[%clk 0:00:59.3]} 20... Bc6 {[%clk 0:01:35.6]}
21. Rhf1 {[%clk 0:00:53.4]} 21... Rae8 {[%clk 0:01:32.3]} 22. Qf2 {[%clk
0:00:39.4]} 22... d5 {[%clk 0:00:28.6]} 23. Ng3 {[%clk 0:00:19.8]} 23... Be7
{[%clk 0:00:19.7]} 24. Nf5 {[%clk 0:00:16.4]} 24... Qxf2 {[%clk 0:00:20.5]} 25.
Rxf2 {[%clk 0:00:18.3]} 25... Bc5 {[%clk 0:00:20.7]} 26. Rfe2 {[%clk 0:00:19.7]}
26... g6 {[%clk 0:00:18.7]} 27. Rxe8 {[%clk 0:00:15.4]} 27... Rxe8 {[%clk
0:00:19.6]} 28. Rxe8+ {[%clk 0:00:16]} 28... Bxe8 {[%clk 0:00:21.5]} 29. Nd4
{[%clk 0:00:16.6]} 29... Bd7 {[%clk 0:00:22.5]} 30. Kc2 {[%clk 0:00:15.2]} 30...
Kg7 {[%clk 0:00:22]} 31. Kd2 {[%clk 0:00:11.1]} 31... Be7 {[%clk 0:00:17.1]} 32.
Nf3 {[%clk 0:00:09.7]} 32... Bd6 {[%clk 0:00:14.6]} 33. Ke3 {[%clk 0:00:10.5]}
33... Kf6 {[%clk 0:00:14.4]} 34. g5+ {[%clk 0:00:08.3]} 34... Ke7 {[%clk
0:00:15.7]} 35. h4 {[%clk 0:00:09.8]} 35... c5 {[%clk 0:00:15]} 36. h5 {[%clk
0:00:10.4]} 36... gxh5 {[%clk 0:00:05.6]} 37. Bxh7 {[%clk 0:00:10.8]} 37... Kf7
{[%clk 0:00:07]} 38. Bd3 {[%clk 0:00:07.1]} 38... Bg4 {[%clk 0:00:07]} 39. Nh4
{[%clk 0:00:07.1]} 39... Be7 {[%clk 0:00:07.7]} 40. c4 {[%clk 0:00:06.1]} 40...
d4+ {[%clk 0:00:03.7]} 41. Ke4 {[%clk 0:00:07.2]} 41... Bh3 {[%clk 0:00:02.4]}
42. Ke5 {[%clk 0:00:05]} 42... Bg4 {[%clk 0:00:03.3]} 43. b3 {[%clk 0:00:04.9]}
43... a6 {[%clk 0:00:03.4]} 44. a3 {[%clk 0:00:04.6]} 44... Bf8 {[%clk
0:00:04.7]} 45. f5 {[%clk 0:00:04.2]} 45... Be7 {[%clk 0:00:05]} 46. f6 {[%clk
0:00:05.6]} 46... Bd8 {[%clk 0:00:04.5]} 47. g6+ {[%clk 0:00:06.9]} 47... Kf8
{[%clk 0:00:05.2]} 48. g7+ {[%clk 0:00:05.7]} 48... Kg8 {[%clk 0:00:06.8]} 49.
Bg6 {[%clk 0:00:05.3]} 49... Bd7 {[%clk 0:00:07.5]} 50. Nf3 {[%clk 0:00:05]}
50... Bc7+ {[%clk 0:00:06.7]} 51. Kd5 {[%clk 0:00:02.9]} 51... Bc6+ {[%clk
0:00:05.4]} 52. Ke6 {[%clk 0:00:04.2]} 52... Bd7+ {[%clk 0:00:02.2]} 53. Kxd7
{[%clk 0:00:03.7]} 53... Be5 {[%clk 0:00:04.1]} 54. Ke7 {[%clk 0:00:04.4]} 54...
Bxf6+ {[%clk 0:00:05.5]} 55. Kxf6 {[%clk 0:00:06.3]} 55... h4 {[%clk 0:00:07.4]}
56. Bf7+ {[%clk 0:00:08.2]} 56... Kh7 {[%clk 0:00:08.4]} 57. g8=Q+ {[%clk
0:00:10.1]} 57... Kh6 {[%clk 0:00:10.3]} 58. Qg6# {[%clk 0:00:11.9]} 1-0

[Event "*** Titled Tuesday Blitz AM"]
[Site "Chess.com"]
[Date "2020.01.07"]
[Round "4"]
[White "Sven_Tica"]
[Black "SergeyShtyka"]
[Result "1-0"]
[WhiteElo "2658"]
[BlackElo "2313"]
[TimeControl "180+2"]
[EndTime "9:54:00 PST"]
[Termination "Sven_Tica won by checkmate"]

1. d4 {[%clk 0:03:01.9]} 1... c5 {[%clk 0:02:58.7]} 2. d5 {[%clk 0:03:02.1]}
2... e5 {[%clk 0:02:59.4]} 3. c4 {[%clk 0:03:00.3]} 3... d6 {[%clk 0:02:58.8]}
4. Nc3 {[%clk 0:02:58.7]} 4... Be7 {[%clk 0:02:59.8]} 5. Nf3 {[%clk 0:02:54.3]}
5... Nf6 {[%clk 0:02:58.6]} 6. e4 {[%clk 0:02:54.5]} 6... Bg4 {[%clk 0:02:59]}
7. Be2 {[%clk 0:02:55.3]} 7... Bxf3 {[%clk 0:02:59.5]} 8. Bxf3 {[%clk
0:02:56.2]} 8... O-O {[%clk 0:03:01.4]} 9. Be3 {[%clk 0:02:57.2]} 9... Nbd7
{[%clk 0:02:57.3]} 10. Qd2 {[%clk 0:02:54.7]} 10... a6 {[%clk 0:02:54.9]} 11. h4
{[%clk 0:02:47.5]} 11... Ne8 {[%clk 0:02:40.7]} 12. g3 {[%clk 0:02:44.2]} 12...
Nc7 {[%clk 0:02:39.8]} 13. Be2 {[%clk 0:02:44.6]} 13... b5 {[%clk 0:02:01.4]}
14. cxb5 {[%clk 0:02:43.9]} 14... axb5 {[%clk 0:02:02.9]} 15. Nxb5 {[%clk
0:02:44.5]} 15... Nxb5 {[%clk 0:02:03.3]} 16. Bxb5 {[%clk 0:02:46.4]} 16... Nb6
{[%clk 0:02:00.2]} 17. a4 {[%clk 0:02:39.5]} 17... Qc7 {[%clk 0:01:58]} 18. Kf1
{[%clk 0:02:31.8]} 18... Rfb8 {[%clk 0:01:56.5]} 19. Kg2 {[%clk 0:02:32.2]}
19... Nc8 {[%clk 0:01:33.4]} 20. Rhc1 {[%clk 0:02:28.7]} 20... Na7 {[%clk
0:01:25]} 21. Bd3 {[%clk 0:02:23.3]} 21... Bd8 {[%clk 0:01:17.6]} 22. Qc2 {[%clk
0:02:17.1]} 22... Qb7 {[%clk 0:01:16.2]} 23. Ra2 {[%clk 0:02:01.3]} 23... Ba5
{[%clk 0:01:16.7]} 24. Bc4 {[%clk 0:01:59.5]} 24... Bb4 {[%clk 0:01:17.4]} 25.
b3 {[%clk 0:02:00.8]} 25... Nc8 {[%clk 0:01:17.7]} 26. Rca1 {[%clk 0:01:58]}
26... Nb6 {[%clk 0:01:14.8]} 27. Bb5 {[%clk 0:01:58.7]} 27... Ra7 {[%clk
0:01:14.5]} 28. Bc6 {[%clk 0:01:51.6]} 28... Qc7 {[%clk 0:01:11.6]} 29. Qd3
{[%clk 0:01:48.2]} 29... Nc8 {[%clk 0:01:11.6]} 30. Bb5 {[%clk 0:01:46.1]} 30...
Ne7 {[%clk 0:01:12.1]} 31. f4 {[%clk 0:01:45.9]} 31... exf4 {[%clk 0:01:09.4]}
32. gxf4 {[%clk 0:01:46.5]} 32... Rd8 {[%clk 0:00:58.6]} 33. Kf3 {[%clk
0:01:43.5]} 33... f5 {[%clk 0:00:54.7]} 34. Rg2 {[%clk 0:01:40.5]} 34... fxe4+
{[%clk 0:00:42.4]} 35. Qxe4 {[%clk 0:01:41.6]} 35... Rf8 {[%clk 0:00:43.5]} 36.
Qe6+ {[%clk 0:01:32.3]} 36... Kh8 {[%clk 0:00:44.4]} 37. Rg5 {[%clk 0:01:30.6]}
37... Ng6 {[%clk 0:00:40.6]} 38. Rh1 {[%clk 0:01:22.7]} 38... Raa8 {[%clk
0:00:33.8]} 39. Rh5 {[%clk 0:01:12.5]} 39... Rf6 {[%clk 0:00:33.5]} 40. Qe4
{[%clk 0:01:10.3]} 40... Raf8 {[%clk 0:00:33.3]} 41. Bd3 {[%clk 0:01:05.2]}
41... Qf7 {[%clk 0:00:27.8]} 42. Rxh7+ {[%clk 0:00:45.7]} 42... Kxh7 {[%clk
0:00:28.7]} 43. h5 {[%clk 0:00:47.2]} 43... Rxf4+ {[%clk 0:00:24.6]} 44. Bxf4
{[%clk 0:00:48]} 44... Qxf4+ {[%clk 0:00:25.8]} 45. Qxf4 {[%clk 0:00:49.7]}
45... Rxf4+ {[%clk 0:00:26.8]} 46. Ke3 {[%clk 0:00:51.4]} 46... Rf8 {[%clk
0:00:17.6]} 47. hxg6+ {[%clk 0:00:52.2]} 47... Kg8 {[%clk 0:00:19]} 48. Bb5
{[%clk 0:00:45.4]} 48... Rf6 {[%clk 0:00:17.4]} 49. Be8 {[%clk 0:00:45.3]} 49...
Kf8 {[%clk 0:00:17.4]} 50. Bf7 {[%clk 0:00:46.6]} 50... Ke7 {[%clk 0:00:18.5]}
51. Rh8 {[%clk 0:00:47.4]} 51... Bc3 {[%clk 0:00:17.3]} 52. Kd3 {[%clk
0:00:45.4]} 52... Bd4 {[%clk 0:00:17.9]} 53. Rh3 {[%clk 0:00:42.7]} 53... Rf1
{[%clk 0:00:18]} 54. Kc4 {[%clk 0:00:43.3]} 54... Kd7 {[%clk 0:00:16]} 55. Kb5
{[%clk 0:00:43.1]} 55... Kc7 {[%clk 0:00:17]} 56. Rd3 {[%clk 0:00:43.1]} 56...
Rb1 {[%clk 0:00:17.3]} 57. a5 {[%clk 0:00:44.1]} 57... Ra1 {[%clk 0:00:18.6]}
58. Rf3 {[%clk 0:00:42.4]} 58... Ra3 {[%clk 0:00:18.1]} 59. Be6 {[%clk 0:00:43]}
59... Be5 {[%clk 0:00:14.8]} 60. Rf7+ {[%clk 0:00:43.3]} 60... Kb8 {[%clk
0:00:16]} 61. Rf3 {[%clk 0:00:33.4]} 61... Kc7 {[%clk 0:00:17.1]} 62. a6 {[%clk
0:00:34.8]} 62... Bd4 {[%clk 0:00:16.1]} 63. Rf7+ {[%clk 0:00:35.5]} 63... Kb8
{[%clk 0:00:17.5]} 64. Rf8+ {[%clk 0:00:36.2]} 64... Kc7 {[%clk 0:00:18.4]} 65.
Rc8# {[%clk 0:00:37.3]} 1-0